Workbook

Sheet Sheet1
A1: 附件5
A2: 云南中医学院2017年基本支出预算表
I3: 单位：万元
A4: 经济科目 | C4: 单位名称（功能科目、经济科目） | D4: 合计 | E4: 本级财力安排 | F4: 财政专管理的收入安排 | G4: 单位自筹安排
A5: 类 | B5: 款 | G5: 小计 | H5: 事业收入安排 | I5: 事业单位经营收入安排 | J5: 其他收入安排
A6: 1 | B6: 2 | C6: 3 | D6: 4 | E6: 5 | F6: 6 | G6: 7 | H6: 8 | I6: 9 | J6: 10
C7: 合计 | D7: =D8 -> 20,584.87 | E7: =E8 -> 10,929.74 | F7: 9,204.03 | G7: 451.10 | H7: 0 | I7: 215.00 | J7: 236.10
C8: 云南中医学院 | D8: =SUM(D9,D43,D46) -> 20,584.87 | E8: =SUM(E9,E43,E46) -> 10,929.74 | F8: 9,204.03 | G8: 451.10 | H8: 0 | I8: 215.00 | J8: 236.10
C9: 教育支出－普通教育－高等教育 | D9: =D10+D16+D40 -> 20,041.93 | E9: =E10+E16+E40 -> 10,900.80 | F9: 8,690.03 | G9: 451.10 | H9: 0 | I9: 215.00 | J9: 236.10
A10: 301 | C10: 工资福利支出 | D10: =SUM(D11:D15) -> 10,840.80 | E10: =SUM(E11:E15) -> 6,940.80 | F10: 3,478.90 | G10: 421.10 | H10: 0 | I10: 185.00 | J10: 236.10
B11: 01 | C11: 基本工资 | D11: =SUM(G11,F11,E11) -> 2,800.00 | E11: 2,800.00 | G11: =SUM(H11:J11) -> 0
B12: 02 | C12: 津贴补贴 | D12: =SUM(G12,F12,E12) -> 2,300.00 | E12: 2,300.00 | G12: =SUM(H12:J12) -> 0
B13: 04 | C13: 其他社会保障缴费 | D13: 31.00 | E13: 31.00 | G13: 0
B14: 07 | C14: 绩效工资 | D14: 5,162.80 | E14: 1,262.80 | F14: 3,478.90 | G14: 421.10 | I14: 185.00 | J14: 236.10
B15: 99 | C15: 其他工资福利支出 | D15: 547.00 | E15: 547.00 | G15: 0
A16: 302 | C16: 商品和服务支出 | D16: =SUM(D17:D39) -> 7,394.38 | E16: =SUM(E17:E39) -> 2,455.00 | F16: 4,909.38 | G16: 30.00 | H16: 0 | I16: 30.00 | J16: 0
B17: 01 | C17: 办公费 | D17: 350.00 | E17: 150.00 | F17: 200.00 | G17: 0
B18: 02 | C18: 印刷费 | D18: 390.00 | E18: 130.00 | F18: 260.00 | G18: 0
B19: 03 | C19: 咨询费 | D19: 70.00 | E19: 5.00 | F19: 65.00 | G19: 0
B20: 04 | C20: 手续费 | D20: 0.50 | F20: 0.50 | G20: 0
B21: 05 | C21: 水费 | D21: 210.00 | E21: 80.00 | F21: 130.00 | G21: 0
B22: 06 | C22: 电费 | D22: 260.00 | E22: 80.00 | F22: 180.00 | G22: 0
B23: 07 | C23: 邮电费 | D23: 70.00 | E23: 50.00 | F23: 20.00 | G23: 0
B24: 09 | C24: 物业管理费 | D24: 388.00 | E24: 388.00 | G24: 0
B25: 11 | C25: 差旅费 | D25: 600.00 | E25: 200.00 | F25: 400.00 | G25: 0
B26: 12 | C26: 因公出国（境）费用 | D26: 55.00 | F26: 55.00 | G26: 0
B27: 13 | C27: 维修（护）费 | D27: 275.00 | E27: 75.00 | F27: 200.00 | G27: 0
B28: 14 | C28: 租赁费 | D28: 12.00 | F28: 12.00 | G28: 0
B29: 15 | C29: 会议费 | D29: 95.00 | E29: 15.00 | F29: 80.00 | G29: 0
B30: 16 | C30: 培训费 | D30: 120.00 | F30: 120.00 | G30: 0
B31: 17 | C31: 公务接待费 | D31: 35.00 | E31: 35.00 | G31: 0
B32: 18 | C32: 专用材料费 | D32: 650.00 | E32: 300.00 | F32: 350.00 | G32: 0
B33: 26 | C33: 劳务费 | D33: 600.00 | E33: 150.00 | F33: 450.00 | G33: 0
B34: 27 | C34: 委托业务费 | D34: 1,100.00 | E34: 300.00 | F34: 800.00 | G34: 0
B35: 28 | C35: 工会经费 | D35: 140.00 | E35: 100.00 | F35: 40.00 | G35: 0
B36: 31 | C36: 公务用车运行维护费 | D36: 80.00 | E36: 45.00 | F36: 35.00 | G36: 0
B37: 39 | C37: 其他交通费用 | D37: 240.00 | E37: 40.00 | F37: 200.00 | G37: 0
B38: 40 | C38: 税金及附加费用 | D38: 30.00 | G38: 30.00 | I38: 30.00
B39: 99 | C39: 其他商品和服务支出 | D39: 1,623.88 | E39: 312.00 | F39: 1,311.88 | G39: 0
A40: 303 | C40: 对个人和家庭的补助 | D40: =SUM(D41:D42) -> 1,806.75 | E40: =SUM(E41:E42) -> 1,505.00 | F40: 301.75 | G40: 0 | H40: 0 | I40: 0 | J40: 0
B41: 05 | C41: 生活补助 | D41: 10.00 | F41: 10.00 | G41: 0
B42: 99 | C42: 其他对个人和家庭的补助支出 | D42: 1,796.75 | E42: 1,505.00 | F42: 291.75 | G42: 0
C43: 社会保障和就业支出－行政事业单位离退休－事业单位离退休（2080502） | D43: =D44 -> 28.94 | E43: =E44 -> 28.94 | F43: 0 | G43: 0 | H43: 0 | I43: 0 | J43: 0
A44: 302 | C44: 商品和服务支出 | D44: =SUM(D45) -> 28.94 | E44: =SUM(E45) -> 28.94 | F44: 0 | G44: 0 | H44: 0 | I44: 0 | J44: 0
B45: 99 | C45: 其他商品和服务支出 | D45: 28.94 | E45: 28.94 | G45: 0
C46: 住房保障支出－住房改革支出－住房公积金（2210201） | D46: =D47 -> 514.00 | E46: =E47 -> 0 | F46: 514.00 | G46: 0 | H46: 0 | I46: 0 | J46: 0
A47: 303 | C47: 对个人和家庭的补助 | D47: =SUM(D48) -> 514.00 | E47: =SUM(E48) -> 0 | F47: 514.00 | G47: 0 | H47: 0 | I47: 0 | J47: 0
B48: 11 | C48: 住房公积金 | D48: 514.00 | F48: 514.00 | G48: 0

Sheet Sheet2

Sheet Sheet3
